[Event "Bangabandhu Premier Div League 2022"]
[Site "Dhaka"]
[Date "2022.12.10"]
[Round "11.7"]
[White "Harikrishnan.A.Ra"]
[Black "Narayanan.S.L"]
[Result "0-1"]
[ECO "A43"]
[WhiteElo "2409"]
[BlackElo "2673"]
[Annotator "TA"]
[PlyCount "80"]
[EventDate "2022.12.01"]
[EventCountry "BAN"]
[SourceTitle "playchess.com"]
[Source "ChessBase"]
[SourceQuality "1"]
[TimeControl "40/5400+30:1800+30"]

{[%evp 9,80,20,50,41,51,34,40,24,39,29,29,34,16,25,36,35,36,-16,0,0,0,-24,-19,-74,-56,-45,-54,-100,-108,-92,-73,-64,-62,-58,-65,-87,-88,-85,-52,-52,-53,-64,-58,-139,-128,-108,-53,-53,-59,-60,-58,-70,-51,-91,-62,-84,-33,-33,-26,-30,-14,-37,-33,-56,-27,-89,-50,-114,-98,-515,-497,-464,-467]} 1. d4 {[%emt 0:00:08]} Nf6 {[%emt 0:00:07]} 2. Nf3 {[%emt 0:00:05]} c5 {[%emt 1:31:23]} 3. d5 {[%emt 0:00:16]} b5 {[%emt 0:00:00]} 4. e4 {[%emt 0:00:14]} Nxe4 {[%emt 0:00:00]} 5. Bd3 {[%emt 0:00:05]} Nf6 {[%emt 0:00:00]} 6. Bxb5 {[%emt 0:00:09] A43: Schmid Benoni.} g6 {[%emt 0:00:00]} 7. c4 {[%emt 0:00:21]} Bg7 {[%emt 0:00:00]} 8. O-O {[%emt 0:00:04] White is slightly better.} O-O {[%emt 0:00:00]} 9. Re1 {[%emt 1:33:38]} d6 {[%emt 0:00:00]} 10. Bd2 {[%emt 0:00:30] [#]} a6 $146 {[%emt 0:00:00]} ({Predecessor:} 10... Nbd7 11. Bc3 Rb8 12. Nbd2 Bb7 13. Qe2 Re8 14. Ng5 h6 15. Nxf7 Kxf7 16. Qe6+ Kf8 17. Bxd7 Qxd7 18. Bxf6 Qxe6 19. Bxg7+ Kxg7 20. dxe6 {1-0 (34) Harikrishnan,A (2396)-Varvaglione,A (2116) Novi Sad 2022}) 11. Ba4 {[%emt 0:00:30]} e5 {[%emt 0:04:30]} 12. dxe6 {[%emt 0:00:30]} Bxe6 {[%emt 0:00:30]} 13. Qc1 {[%emt 0:00:30]} (13. Bf4 $14) 13... Bg4 {[%emt 0:00:30]} 14. Bd1 {[%emt 0:00:00]} Nc6 {[%emt 0:00:00]} 15. Bc3 Nb4 {[%emt 0:01:00] [#] aiming for ...Nd3.} 16. Qd2 {[%emt 0:01:30] Prevents Nd3.} (16. Be2 $11 {remains equal.}) 16... Bf5 $17 {[%emt 0:00:30]} 17. Bxb4 {[%emt 0:00:00]} cxb4 {[%emt 0:00:30]} 18. Bc2 {[%emt 0:01:00] Against Ne4} (18. Qxb4 $15 Ne4 19. Nc3) 18... Bg4 {[%emt 0:00:30] Hoping for ...Bxf3. A strong pair of Bishops.} 19. Qf4 {[%emt 0:00:30]} Bxf3 {[%emt 0:00:00]} 20. Qxf3 {[%emt 0:00:00]} Nd7 {[%emt 0:01:00][%cal Bf6d7,Bd7e5,Be5c4][%mdl 32]} 21. Nd2 {[%emt 0:00:00]} Bxb2 {[%emt 0:00:00]} 22. Rab1 {[%emt 0:01:30]} Bc3 {[%emt 0:00:00]} 23. Red1 {[%emt 0:00:30]} Rc8 {[%emt 0:01:30] And now ...Bxd2 would win.} 24. Ne4 {[%emt 0:00:30][%csl LRc3,LRd6]} Ne5 $1 {[%emt 0:00:00]} 25. Qh3 {[%emt 0:00:30]} Nxc4 {[%emt 0:01:00] [#] Strongly threatening ...Na3.} (25... Rxc4 $2 26. Rxd6 $18 (26. Nxd6 Rh4 $15) (26. Nxd6 Rh4 $15)) 26. Bb3 {[%emt 0:00:00]} (26. Nxc3 $15 bxc3 27. Qxc3) 26... d5 {[%emt 0:00:00]} 27. Rbc1 {[%emt 0:01:00]} Re8 {[%emt 0:01:00]} ({Better is} 27... dxe4 $17 28. Rxd8 Rfxd8) 28. Nxc3 $15 {[%emt 0:00:00]} bxc3 {[%emt 0:00:30]} 29. Qxc3 {[%emt 0:00:00]} Qg5 {[%emt 0:00:30]} 30. Qg3 {[%emt 0:01:30]} Qf5 {[%emt 0:00:30] Black is more active.} 31. h3 {[%emt 0:00:30]} h5 {[%emt 0:00:30]} (31... Re2 {with more complications.} 32. Rf1 h5 33. Qc3 Nd6) 32. Rc3 {[%emt 0:00:30]} Re5 {[%emt 0:00:30]} (32... Re2 $17) 33. Qd3 {[%emt 0:00:30]} Qe6 {[%emt 0:00:30]} 34. Qd4 {[%emt 0:00:30]} Kh7 {[%emt 0:00:30]} (34... a5 {feels hotter.} 35. Kh2 Re8 36. f4 Re3) 35. Rf3 {[%emt 0:00:00]} Rc7 {[%emt 0:00:00]} 36. Kh2 {[%emt 0:01:00]} a5 {[%emt 0:00:00][%cal Ba6a5,Ba5a4][%mdl 32]} 37. Qf4 (37. Rf4 $11) 37... Nb6 {[%emt 0:01:30][%cal Oa5a4] Threatens to win with ...a4!} 38. Re3 {[%emt 0:01:00] Prevents a4.} (38. Re1 $15 Rxe1 39. Qxc7) 38... Rxe3 $17 {[%emt 0:00:00]} 39. Qxe3 {[%emt 0:00:00][%mdl 8192]} (39. fxe3 $17 {was the crucial defense.} Re7 40. Rd3) 39... a4 $19 40. Qf4 {[%emt 0:00:00]} Rc8 {[%emt 0:00:00] Weighted Error Value: White=0.34/Black=0.11 (very precise)} 0-1

[Event "Bangabandhu Premier Div League 2022"]
[Site "Dhaka"]
[Date "2022.12.10"]
[Round "11.7"]
[White "Abdul, Momin"]
[Black "Aaryan Varshney"]
[Result "0-1"]
[ECO "C54"]
[WhiteElo "1900"]
[BlackElo "2312"]
[Annotator "TA"]
[PlyCount "84"]
[EventDate "2022.11.30"]
[EventType "team-tourn"]
[EventCountry "BAN"]
[SourceTitle "playchess.com"]
[Source "ChessBase"]
[SourceQuality "1"]
[TimeControl "40/5400+30:1800+30"]

{[%evp 14,84,20,8,11,11,9,0,26,24,30,0,0,0,0,-38,-17,-13,-24,-24,-20,-161,-31,-134,-118,-97,-98,-204,-110,-97,-102,-137,-118,-282,-182,-170,-80,-89,-72,-214,-47,-202,-91,-96,-89,-96,-81,-57,-64,-129,-151,-179,-152,-2206,-2177,-1970,-1908,-29989,-29990,-29990,-29990,-29989,-29990,-29991,-29992,-29992,-29990,-29990,-29991,-29991,-29992,-29996,-29997]} 1. e4 {[%emt 0:00:08]} e5 {[%emt 0:00:05]} 2. Nf3 {[%emt 0:00:02]} Nc6 {[%emt 0:00:58]} 3. Bc4 {[%emt 0:03:00]} Bc5 {[%emt 0:00:08]} 4. O-O {[%emt 0:01:05]} Nf6 {[%emt 0:00:03]} 5. d3 {[%emt 0:00:56]} O-O {[%emt 0:01:06]} 6. c3 {[%emt 0:00:03]} d6 {[%emt 0:01:27]} 7. h3 {[%emt 0:00:17]} h6 {[%emt 0:00:20]} 8. Re1 {[%emt 0:00:25]} a5 {[%emt 0:01:17] 8...Bb6 is the recent fashion. C54: Giuoco Piano: 4 c3 Nf6, main lines with 5 d4 and 5 d3.} 9. Bb3 {[%emt 0:00:07]} Ba7 {[%emt 0:00:47]} 10. a4 {[%emt 0:01:27]} Be6 {[%emt 0:00:28] The position is equal.} 11. Bc2 {[%emt 0:00:09]} Re8 {[%emt 0:00:42]} 12. Na3 {[%emt 0:00:17]} (12. d4 $5 {[%cal Rd4d5]} exd4 13. Nxd4 $11) 12... d5 {[%emt 0:00:56] [#]} 13. Nb5 $146 {[%emt 0:00:16]} ({Predecessor:} 13. Qe2 Qd7 14. Bb1 Rad8 15. Nb5 Bb6 16. Qc2 dxe4 17. dxe4 Bxh3 18. gxh3 Qxh3 19. Nh2 {0-1 (30) Miller,R (1961)-Varela la Madrid,T (2079) Chennai 2022}) 13... Bb6 {[%emt 0:00:12]} 14. Qe2 {[%emt 0:01:22]} Qd7 {[%emt 0:01:26]} 15. Bd2 {[%emt 0:00:58]} Rad8 {[%emt 0:01:32][%cal Oe6h3]} 16. Rad1 {[%emt 0:00:03]} Qc8 {[%emt 0:03:53]} 17. Nh4 {[%emt 0:03:43] [#]} (17. Bc1 $11) 17... Ne7 {[%emt 0:05:13]} (17... Bxh3 $1 $19 {[%mdl 512] aiming for ...Bg4.} 18. Be3 (18. gxh3 $2 Qxh3 19. Qf3 Qxh4 $19) 18... d4 19. cxd4 exd4 20. Bxh6 Qg4 21. Qxg4 Bxg4) 18. Kh2 {[%emt 0:02:28]} (18. Qf3 $15) 18... c6 $17 {[%emt 0:01:34]} 19. Na3 {[%emt 0:00:02]} g5 {[%emt 0:02:36]} 20. exd5 {[%emt 0:10:26]} (20. Nf3 $17) 20... cxd5 {[%emt 0:01:38]} (20... Nexd5 21. Nf3 $17) ({Black should try} 20... Bxd5 $19 21. Nf3 Ng6) 21. Nf3 {[%emt 0:06:45]} Ng6 $36 {[%emt 0:00:54][%cal Oe5e4][%mdl 2048] Hoping for ...e4! Black is in control. Black is more active.} 22. Nb5 {[%emt 0:00:43] Against e4} Bf5 {[%emt 0:02:14] Against d4} (22... e4 $6 23. Nfd4 $11) 23. Nxg5 $2 {[%emt 0:03:41]} hxg5 {[%emt 0:12:34]} 24. Bxg5 {[%emt 0:00:43]} Nh7 {[%emt 0:05:15]} 25. Bxd8 {[%emt 0:00:05]} Qxd8 {[%emt 0:55:42]} 26. Qh5 {[%emt 0:03:49]} (26. Qf3 $17 Nf4 27. Rxe5 Rxe5 28. Qxf4) 26... Qf6 $2 {[%emt 0:00:00]} ({Better is} 26... Ng5 $1 $19 {White must now prevent ...Nf4.} 27. h4 Nxh4) 27. Qh6 {[%emt 0:04:47] [#]} (27. Nd6 $1 $15 Qxd6 28. Qxf5) 27... Bd7 {[%emt 0:00:00]} ({Worse is} 27... Bxf2 28. Rf1 Bh4 29. g3 $11) (27... Re6 $1 $19 {[%cal Of5h3] and Black stays clearly on top. Threatens to win with ...Bxh3!} 28. Rg1 Bxf2) 28. d4 {[%emt 0:02:21] [#]} e4 {[%emt 0:00:00]} 29. Kg1 {[%emt 0:01:38]} Bxb5 {[%emt 0:00:00]} 30. axb5 {[%emt 0:00:01][%cal Of2f3]} Bc7 {[%emt 0:00:00] Prevents f3.} 31. c4 {[%emt 0:01:21]} (31. Ra1 $1 $15) 31... Qf5 {[%emt 0:00:00]} 32. f3 {[%emt 0:13:32]} Ng5 {[%emt 0:00:00] The board is on fire.} 33. h4 $2 {[%emt 0:10:12] [#]} (33. cxd5 $17 Bg3 34. Rxe4 Rxe4 35. Bxe4) 33... Nxf3+ $1 $19 {[%emt 0:00:00][%mdl 576]} 34. gxf3 {[%emt 0:02:41]} Bf4 {[%emt 0:00:00]} ({Inferior is} 34... Qxf3 35. Qg5 $11) 35. Qxg6+ {[%emt 0:06:41]} Qxg6+ {[%emt 0:00:00] Black mates.} 36. Kh1 {[%emt 0:00:07]} Qh6 {[%emt 0:00:00]} 37. Rg1+ {[%emt 0:00:04]} Kf8 {[%emt 0:00:00]} 38. fxe4 {[%emt 0:00:40]} Qxh4+ {[%emt 0:00:00]} 39. Kg2 {[%emt 0:00:02]} Qg3+ {[%emt 0:00:00]} 40. Kf1 {[%emt 0:00:06]} Qf3+ {[%emt 0:00:00]} 41. Ke1 {[%emt 0:30:08]} dxe4 {[%emt 0:12:11][%cal Bd5e4,Be4e3][%mdl 32]} 42. d5 {[%emt 0:00:36]} e3 {[%emt 0:00:11] Weighted Error Value: White=0.64/Black=0.27 (precise)} 0-1

[Event "Bangabandhu Premier Div League 2022"]
[Site "Dhaka"]
[Date "2022.12.10"]
[Round "11.8"]
[White "Idani, Pouya"]
[Black "Asif, Mahmud"]
[Result "1/2-1/2"]
[ECO "C84"]
[WhiteElo "2631"]
[BlackElo "1926"]
[Annotator "TA"]
[PlyCount "107"]
[EventDate "2022.12.01"]
[EventCountry "BAN"]
[SourceTitle "playchess.com"]
[Source "ChessBase"]
[SourceQuality "1"]
[TimeControl "40/5400+30:1800+30"]

{[%evp 13,107,18,15,4,29,33,22,36,34,27,29,20,62,22,77,72,64,50,52,56,57,35,43,0,0,0,0,0,0,0,0,0,0,0,0,0,0,0,0,0,0,0,0,0,0,-6,-6,-28,0,0,0,0,0,-2,0,0,91,20,20,20,20,20,20,20,21,28,21,8,12,12,12,0,0,0,0,0,8,3,3,0,0,0,0,0,0,0,0,0,0,0,0,-68,-69,-63,-63,-58]} 1. e4 {[%emt 0:00:02]} e5 {[%emt 0:00:15]} 2. Nf3 {[%emt 0:00:05]} Nc6 {[%emt 0:00:14]} 3. Bb5 {[%emt 0:00:05][%cal Bf1b5,Bb5a4,Ba4b3,Bb3a2][%mdl 32]} a6 {[%emt 0:00:43]} 4. Ba4 {[%emt 0:00:14]} Nf6 {[%emt 0:00:14]} 5. O-O {[%emt 0:00:05]} Be7 {[%emt 0:00:15]} 6. d3 {[%emt 0:00:52]} b5 {[%emt 0:03:27]} 7. Bb3 {[%emt 1:32:37]} d6 {[%emt 0:03:24]} 8. a3 {[%emt 0:00:00] C84: Closed Ruy Lopez: Unusual White 6th moves.} Bg4 {[%emt 0:04:38]} 9. Be3 {[%emt 0:01:00] Inhibits Nd4.} Na5 {[%emt 0:04:42]} 10. Ba2 {[%emt 0:00:00] The position is equal.} c5 {[%emt 0:00:23]} 11. Nc3 {[%emt 0:00:00]} Nc6 {[%emt 0:06:12] [#]} 12. h3 $146 {[%emt 0:00:00]} ({Predecessor:} 12. Nd5 Nd4 13. Bxd4 cxd4 14. c4 dxc3 15. Nxc3 O-O 16. Nd5 Rc8 17. Ne3 Be6 18. Bxe6 fxe6 {½-½ (51) Bukowska,K (1842)-Tomalak,S (1554) Polanica Zdroj 2022}) 12... Bh5 {[%emt 0:02:31]} 13. Nd5 {[%emt 0:00:00] White is more active.} (13. g4 $5 {[%cal Rg4h5]} Bg6 14. Nh4 $16) 13... Nd4 {[%emt 0:04:15]} (13... Nxd5 $11 14. Bxd5 Rc8) 14. g4 $16 {[%emt 0:00:00]} Bg6 {[%emt 1:06:17]} 15. Nxe7 {[%emt 0:00:00]} (15. b4 {with more complications.} h5 16. g5 Nxd5 17. Bxd5 Rc8 18. Nh4) 15... Qxe7 {[%emt 0:00:00]} 16. Nxd4 {[%emt 0:00:00]} cxd4 {[%emt 0:00:00]} 17. Bg5 {[%emt 0:00:00]} h5 {[%emt 0:01:30]} 18. Qf3 {[%emt 0:04:30]} hxg4 {[%emt 0:00:00]} 19. hxg4 {[%emt 0:00:00]} Qd7 {[%emt 0:00:00]} 20. Bxf6 {[%emt 0:00:00]} gxf6 {[%emt 0:00:00]} 21. Kg2 {[%emt 0:00:00][%cal Bg1g2,Bg2f1,Bf1e1,Be1d2][%mdl 32]} Ke7 {[%emt 0:00:00][%cal Og6h5] [#] aiming for ...Bh5!} ({Much less strong is} 21... Rh4 22. Kg3 (22. Qxf6 $2 Qxg4#) 22... Rh7 23. Qxf6 $16) 22. Rh1 {[%emt 0:00:00] Prevents Bh5.} Rag8 {[%emt 0:00:00] ...Bh5 is the strong threat.} 23. Rxh8 {[%emt 0:00:00]} Rxh8 {[%emt 0:00:00]} 24. Rg1 {[%emt 0:00:00]} Qc8 {[%emt 0:03:30]} 25. Qe2 {[%emt 0:03:30]} Rh4 {[%emt 0:00:00]} 26. Kf1 {[%emt 0:00:00]} Qh8 {[%emt 0:01:00]} 27. Ke1 {[%emt 0:01:00]} Qh6 {[%emt 0:00:00] [#] Hoping for ...Qc1+.} 28. Qd2 {[%emt 0:00:00] Prevents Qc1+.} Qg5 {[%emt 0:01:00]} 29. Qxg5 {[%emt 0:00:00]} fxg5 $11 {[%emt 0:00:00][%mdl 4096] Endgame KRB-KRB} 30. Bd5 {[%emt 0:01:30]} Rh8 {[%emt 0:00:00]} 31. b4 {[%emt 0:00:30]} f6 {[%emt 0:00:00]} 32. Kd2 {[%emt 0:00:00]} Bf7 {[%emt 0:00:00]} 33. Bb7 {[%emt 0:00:00]} Rb8 {[%emt 0:00:00]} 34. Bxa6 {[%emt 0:01:30]} Kf8 {[%emt 0:00:00]} (34... Kd7 $11 {keeps the balance.}) 35. Rc1 {[%emt 0:00:00]} (35. Rh1 $16) 35... Be6 {[%emt 0:00:32] Inhibits a4.} 36. c4 {[%emt 0:00:00]} dxc3+ {[%emt 0:01:16]} 37. Rxc3 {[%emt 0:00:00]} Bxg4 {[%emt 0:01:38]} 38. Rc7 {[%emt 0:00:00]} Ke8 {[%emt 0:00:45]} 39. Rh7 {[%emt 0:00:00] And now Rh8+ would win.} Rb6 {[%emt 0:00:12]} 40. Bb7 {[%emt 0:00:00]} Bd7 {[%emt 0:00:34]} 41. Bd5 {[%emt 0:17:19]} Ra6 {[%emt 0:30:49]} 42. Rf7 {[%emt 0:01:05]} Rxa3 {[%emt 0:00:31]} 43. Rxf6 {[%emt 0:00:05]} Ke7 {[%emt 0:01:13]} 44. Rf7+ {[%emt 0:05:01]} Ke8 {[%emt 0:00:00]} 45. Rg7 {[%emt 0:02:25]} g4 {[%emt 0:00:06]} 46. Bf7+ {[%emt 0:00:40]} Kf8 {[%emt 0:00:31]} 47. Rh7 {[%emt 0:09:55]} Ra1 {[%emt 0:00:00]} 48. Bh5 {[%emt 0:00:00]} Be6 {[%emt 0:00:00]} 49. Rb7 {[%emt 0:01:00]} Ra2+ {[%emt 0:02:23]} 50. Ke3 {[%emt 0:00:00]} Ra3 {[%emt 0:00:30]} 51. Rb8+ {[%emt 0:00:00]} Ke7 {[%emt 0:00:00]} 52. Rxb5 {[%emt 0:00:00]} (52. Ke2 $11) 52... Bc4 $1 $15 {[%emt 0:00:00]} 53. Rb7+ {[%emt 0:00:00]} Kf6 {[%emt 0:00:00][%mdl 1024] Black has compensation.} 54. Kd2 $1 {[%emt 0:00:00] Weighted Error Value: White=0.09 (flawless) /Black=0.08 (flawless)} (54. Bxg4 $2 {is the wrong capture.} Rxd3+ 55. Ke2 Rg3+ 56. Ke1 Rg1+ 57. Kd2 Rxg4 $19) 1/2-1/2

[Event "Bangabandhu Premier Div League 2022"]
[Site "Dhaka"]
[Date "2022.12.10"]
[Round "11.8"]
[White "Kushagra Mohan"]
[Black "Warsia, Khusbu"]
[Result "1-0"]
[ECO "B30"]
[WhiteElo "2390"]
[BlackElo "1540"]
[Annotator "TA"]
[PlyCount "99"]
[EventDate "2022.11.30"]
[EventType "team-tourn"]
[EventCountry "BAN"]
[SourceTitle "playchess.com"]
[Source "ChessBase"]
[SourceQuality "1"]
[TimeControl "40/5400+30:1800+30"]

{[%evp 10,98,2,13,38,25,26,33,30,36,33,18,26,19,39,6,48,41,118,95,111,43,58,52,54,28,43,18,27,0,0,0,0,0,77,83,240,0,0,0,0,0,0,-24,-36,-28,-28,-36,-20,-119,-60,-72,-77,-149,-109,-110,-87,-112,-132,-264,-221,-485,-267,-767,-471,-574,-335,-641,910,910,910,910,910,618,574,564,662,645,572,531,29977,29979,29985,12785,29996,29997,29997,29998,29998,29999,29999]} 1. e4 {[%emt 0:00:11]} c5 {[%emt 0:00:29]} 2. Nc3 {[%emt 0:00:03]} Nc6 {[%emt 0:00:07]} 3. Bb5 {[%emt 0:00:05]} Nd4 {[%emt 1:31:24]} 4. Nf3 {[%emt 0:00:01]} e6 {[%emt 0:00:00]} 5. O-O {[%emt 0:00:06]} a6 {[%emt 0:00:00]} 6. Bd3 {[%emt 0:00:04]} g6 {[%emt 0:00:00] B30: Sicilian: 2...Nc6 3 Bb5, lines without ...g6.} 7. Nxd4 {[%emt 0:03:06]} cxd4 {[%emt 0:00:00]} 8. Ne2 {[%emt 0:00:02]} Bg7 {[%emt 0:00:00] White is slightly better.} 9. c3 {[%emt 0:00:01]} dxc3 {[%emt 0:00:00]} 10. bxc3 {[%emt 0:01:38]} Ne7 {[%emt 0:00:00]} 11. Bc2 {[%emt 0:00:31]} O-O {[%emt 0:00:00]} 12. d4 {[%emt 0:00:02]} d5 {[%emt 0:00:00]} 13. e5 {[%emt 0:00:36] [#]} h6 $146 {[%emt 0:00:00]} (13... Bd7 $14) ({Predecessor:} 13... Bd7 14. a4 Rc8 15. Kh1 Qc7 16. Ba3 Rfe8 17. Bd6 Qd8 18. Qd2 Nf5 19. Ba3 h5 {1-0 (51) Pridorozhni,A (2590)-Ozer,O (2317) Chess.com INT 2020}) 14. Rb1 {[%emt 0:01:30]} b5 {[%emt 0:00:00]} 15. a4 {[%emt 0:00:20]} (15. h4 $16) 15... Bd7 {[%emt 0:00:00]} 16. Ba3 {[%emt 0:01:16]} Re8 {[%emt 0:00:00]} 17. Bc5 {[%emt 0:04:34]} Nf5 {[%emt 0:00:00]} 18. axb5 {[%emt 0:02:19]} Bxb5 {[%emt 0:00:00]} 19. Ba4 {[%emt 0:01:01]} (19. Re1 {is more complex.} Qg5 20. Ba3 Nh4 21. Ng3) 19... Bxa4 {[%emt 0:00:00]} 20. Qxa4 {[%emt 0:00:01]} Qg5 {[%emt 0:00:00]} 21. Rb7 {[%emt 0:05:59] aiming for Qd7.} Nh4 {[%emt 0:00:00]} (21... Bf8 $11) 22. Ng3 $16 {[%emt 0:00:51] Hoping for Qd7. Active counter play!} Qf4 $2 {[%emt 0:00:00] [#]} (22... Bf8 $16 {was called for.}) 23. Qb3 $2 {[%emt 0:08:13]} ({White has to play} 23. Ba3 $1 $18) 23... Rec8 $11 {[%emt 0:00:00][%cal Og7e5]} 24. Be7 {[%emt 0:03:23]} Nf5 $40 {[%emt 0:00:00][%mdl 128] Black mounts an attack.} 25. Nxf5 {[%emt 0:02:17]} Qxf5 {[%emt 0:00:00]} 26. Rd1 {[%emt 0:04:12]} a5 {[%emt 0:00:00]} 27. h3 {[%emt 0:01:41]} h5 {[%emt 0:00:00]} 28. Bd6 {[%emt 0:02:43]} g5 {[%emt 0:00:00]} 29. Re1 {[%emt 0:07:11]} (29. Qb2 $11) 29... g4 {[%emt 0:00:00]} (29... a4 $17 30. Qb2 g4 31. hxg4 hxg4) 30. hxg4 $15 {[%emt 0:02:59]} hxg4 {[%emt 0:00:00]} 31. Bc5 {[%emt 0:01:36]} ({White should play} 31. Qb1) 31... Bh6 {[%emt 0:00:00]} 32. Qb1 {[%emt 0:01:56] [#]} Qh5 {[%emt 0:00:00]} 33. c4 {[%emt 0:05:36]} dxc4 {[%emt 0:00:00] And now ...c3 would win.} 34. Re4 {[%emt 0:05:58]} (34. d5 $17 Qg6 35. dxe6 (35. Qxg6+ $2 fxg6 36. Ba3 exd5 $19) 35... Qxb1 36. exf7+ Kh8 37. Rbxb1 Rxc5 38. e6) 34... Qf5 {[%emt 0:00:00] White must now prevent ...c3.} 35. Qe1 {[%emt 0:03:35] Inhibits c3.} (35. Re2 Qd3 36. Ra2) 35... Kh8 {[%emt 0:00:00]} (35... c3 $142 36. Qb1 a4) 36. Qe2 {[%emt 0:04:07]} (36. f3 gxf3 37. Rh4) 36... Rg8 {[%emt 0:00:00] Threatens to win with ...Rab8.} 37. Be7 {[%emt 0:03:08]} Kh7 {[%emt 0:00:00]} 38. Bf6 $2 {[%emt 0:03:10]} (38. Qc2 a4 39. Re2) 38... Qg6 $4 {[%emt 0:00:00][%mdl 8192] [#]} (38... Rab8 $19 39. Rxb8 (39. Rxf7+ $2 {perishes.} Kg6 $19) 39... Rxb8 40. Rxg4 c3) 39. Rxg4 $3 $18 {[%emt 0:03:37][%mdl 576] Deflection} Qxg4 {[%emt 0:00:00]} 40. Rxf7+ {[%emt 0:00:06]} Kg6 {[%emt 0:00:00]} 41. Rg7+ {[%emt 0:36:37]} Bxg7 {[%emt 0:27:13]} 42. Qxg4+ {[%emt 0:00:02]} Kf7 {[%emt 0:00:43]} 43. Bxg7 {[%emt 0:01:58][%cal Od4d5] d5! is the strong threat.} Rae8 {[%emt 0:00:45] [#] Inhibits d5.} 44. d5 $1 {[%emt 0:01:14] White threatens dxe6+ and mate.} exd5 {[%emt 0:05:43]} (44... Rxg7 45. dxe6+) 45. Qd7+ {[%emt 0:01:22]} Kg6 {[%emt 0:00:30]} 46. e6 {[%emt 0:00:41]} (46. Bf6 $142 Kh6 47. g4 Ref8 48. Qf5 Rxf6 49. exf6 Rg5 50. Qe6 Rg6 51. f4) 46... a4 {[%emt 0:01:57]} 47. Qf7+ {[%emt 0:00:23] White mates.} Kg5 {[%emt 0:15:09]} 48. Qf6+ {[%emt 0:00:20]} Kh5 {[%emt 0:00:00]} 49. Qf5+ {[%emt 0:00:04]} Kh4 {[%emt 0:00:00]} 50. g3# {[%emt 0:00:03] Weighted Error Value: White=0.69/Black=0.70} 1-0

[Event "Bangabandhu Premier Div League 2022"]
[Site "Dhaka"]
[Date "2022.12.10"]
[Round "11.9"]
[White "Anata, Choudhury"]
[Black "Haque, Rezaul"]
[Result "1-0"]
[ECO "C41"]
[WhiteElo "2176"]
[BlackElo "1949"]
[Annotator "TA"]
[PlyCount "33"]
[EventDate "2022.11.30"]
[EventType "team-tourn"]
[EventCountry "BAN"]
[SourceTitle "playchess.com"]
[Source "ChessBase"]
[SourceQuality "1"]
[TimeControl "40/5400+30:1800+30"]

{[%evp 9,33,80,83,81,75,74,72,75,74,80,108,93,103,86,114,111,176,167,270,256,225,106,287,295,548,414]} 1. e4 {[%emt 0:00:05]} d6 {[%emt 0:00:15]} 2. d4 {[%emt 0:00:10]} Nf6 {[%emt 0:00:30]} 3. Nc3 {[%emt 0:00:08]} e5 {[%emt 0:00:33]} 4. Nf3 {[%emt 0:00:13]} Bg4 {[%emt 0:00:27]} 5. dxe5 {[%emt 0:00:25]} Bxf3 {[%emt 0:00:05][%mdl 64] [#] Remove Defender} 6. Qxf3 {[%emt 0:00:09] C41: Philidor Defence.} (6. gxf3 {simplifies} dxe5 7. Qxd8+ Kxd8 8. Rg1) 6... dxe5 {[%emt 0:00:03]} 7. Bd2 {[%emt 0:00:45]} c6 {[%emt 0:01:06]} 8. O-O-O {[%emt 0:00:19] White is better.} Nbd7 {[%emt 0:01:26]} 9. g4 {[%emt 0:00:34][%cal Bg2g4,Bg4g5,Bg5g6][%mdl 32] [#] g5 is the strong threat.} Nc5 $146 {[%emt 0:01:35]} ({Predecessor:} 9... h6 10. h4 Qc7 11. Bh3 Nb6 12. g5 Nfd7 13. Be3 Bc5 14. Kb1 Bxe3 15. Qxe3 O-O-O {1-0 (34) Abu Sufian,S (2325)-Haque,R (2108) Dhaka 2015}) 10. g5 {[%emt 0:04:07]} Nfd7 {[%emt 0:00:19]} 11. Be3 {[%emt 0:00:26]} Qc7 {[%emt 0:03:09]} 12. h4 {[%emt 0:00:55][%cal Bh2h4,Bh4h5,Bh5h6][%mdl 32] White has more active pieces. The black rooks are badly placed.} Be7 {[%emt 0:14:50]} (12... Ne6 $16) 13. h5 $36 {[%emt 0:06:58][%cal Og5g6][%mdl 2048] Strongly threatening g6! White is in control.} O-O {[%emt 0:05:03]} (13... Rf8 {is a better defense.} 14. Bh3 b5) 14. g6 {[%emt 0:01:46]} b5 {[%emt 0:03:30]} 15. Bh3 {[%emt 0:38:19]} (15. gxh7+ $18 {is more deadly.} Kxh7 16. Bh3) 15... Nf6 $2 {[%emt 0:16:30]} (15... fxg6 $16 16. Qg3 gxh5) 16. gxh7+ {[%emt 0:04:38]} Kxh7 $2 {[%emt 0:03:18]} (16... Nxh7 {was necessary.} 17. Rhg1 Ne6 18. Bxe6 fxe6) 17. h6 {[%emt 0:02:12] Weighted Error Value: White=0.20 (precise) /Black=0.70} 1-0